bitfinex/quotes_ETHUSD_20241003
["timestamp","ask_amount","ask_price","bid_price","bid_amount"]
[1727967875887,0.860644,2323.8,2322.9,0.778]
[1727967876074,4.30393,2323.5,2323.0,4.30466]
[1727967876279,4.30395,2323.5,2323.0,8.60935]
[1727967876508,4.30357,2323.7,2323.2,4.30431]
[1727967876710,4.30325,2323.9,2323.2,0.430431]
[1727967877011,4.30325,2323.9,2323.4,0.7868]
[1727967877211,4.30295,2324.0,2323.5,4.30373]
[1727967877540,4.30223,2324.4,2323.9,0.55]
[1727967877847,0.86909716,2324.5,2324.1,4.85265]
[1727967878206,4.30219,2324.4,2324.1,0.55]
[1727967878639,8.6039,2324.6,2324.1,0.55]
[1727967878791,0.86909716,2324.7,2324.1,0.55]
[1727967878792,4.30226,2324.4,2324.1,0.55]
[1727967879007,4.30245,2324.3,2324.1,0.55]
[1727967879236,4.30226,2324.4,2324.1,0.55]
[1727967879535,0.86909716,2324.6,2324.4,0.55]
[1727967879833,0.86909716,2324.5,2324.4,0.55]
[1727967880040,0.86909716,2324.6,2324.4,4.85218]
[1727967880245,5.17106716,2324.6,2324.4,1.035225]
[1727967880538,6.04147116,2324.5,2324.1,4.85271]
[1727967880743,0.87421742,2324.3,2324.1,4.85271]
[1727967880943,0.87421742,2324.4,2324.2,4.30248]
[1727967881104,0.87421742,2324.5,2324.3,0.55]
[1727967881300,0.87421742,2324.6,2324.3,4.85228]
[1727967881551,1.31132614,2324.7,2324.5,0.55]
[1727967881552,5.17585742,2324.7,2324.5,0.55]
[1727967881836,5.17566742,2324.8,2324.5,0.55]
[1727967882037,0.87421742,2324.7,2324.6,0.8085]
[1727967882253,1.31132614,2324.9,2324.8,4.85144]
[1727967882397,0.8746356,2325.0,2324.9,4.85126]
[1727967882598,1.31132614,2325.1,2325.0,4.30107]
[1727967882599,0.8746356,2325.1,2325.0,4.30107]
[1727967882918,1.31132614,2325.2,2325.1,0.55]
[1727967882919,0.87503695,2325.2,2325.1,0.55]
[1727967883099,0.87503695,2325.3,2325.1,0.55]
[1727967883304,5.17536695,2325.4,2325.1,0.55]
[1727967883517,4.30033,2325.4,2325.1,0.55]
[1727967883747,5.17513695,2325.6,2325.1,4.85085]
[1727967884053,4.3001,2325.6,2325.1,4.85085]
[1727967884198,5.17510695,2325.6,2325.1,9.15165]
[1727967884745,0.87503695,2325.5,2325.1,4.8508]
[1727967884901,0.87503695,2325.5,2325.1,0.55]
[1727967885107,4.30037,2325.4,2325.1,0.55]
[1727967885440,4.30052,2325.3,2325.1,0.55]
[1727967885655,4.30037,2325.4,2325.1,0.55]
[1727967885819,4.30056,2325.3,2325.1,0.55]
[1727967886020,4.30056,2325.3,2324.7,0.7583]
[1727967886021,4.30117,2325.0,2324.7,0.7583]
[1727967886253,4.30155,2324.8,2324.4,0.7583]
[1727967886444,4.30168,2324.7,2324.4,0.7583]
[1727967886838,4.30155,2324.8,2324.4,0.7583]
[1727967887039,4.30189,2324.6,2324.4,0.7583]
[1727967887258,0.87503695,2324.9,2324.4,0.7583]
[1727967887417,4.30181,2324.6,2324.4,0.7583]
[1727967887620,4.30147,2324.8,2324.4,0.7583]
[1727967887817,0.87503695,2324.9,2324.5,4.30191]
[1727967888010,5.17593695,2325.1,2324.6,4.30167]
[1727967888359,5.17593695,2325.1,2324.4,0.7583]
[1727967888360,4.3011,2325.0,2324.4,5.06037]
[1727967888524,4.3011,2325.0,2324.5,4.30184]
[1727967888879,4.30137,2324.9,2324.5,0.55]
[1727967889084,4.30146,2324.8,2324.5,0.55]
[1727967889262,4.30096,2325.1,2324.7,4.85162]
[1727967889668,4.30065,2325.3,2324.7,0.55]
[1727967889872,5.17531695,2325.5,2325.1,0.55]
[1727967890168,4.30041,2325.4,2325.1,0.55]
[1727967890367,4.30062,2325.3,2325.0,0.8111]
[1727967890540,4.30006,2325.6,2325.1,0.55]
[1727967890739,4.30044,2325.4,2325.1,0.55]
[1727967891475,4.30022,2325.5,2324.9,0.55]
[1727967891675,4.30022,2325.5,2325.0,4.3009]
[1727967891676,4.30035,2325.4,2325.0,4.3009]
[1727967891884,4.30035,2325.4,2325.1,0.55]
[1727967892084,8.60008,2325.6,2325.1,1.09009]
[1727967892287,5.10022,2325.8,2325.2,4.3007]
[1727967892452,4.29978,2325.7,2325.3,1.3247]
[1727967892654,4.2996,2325.8,2325.3,5.62503]
[1727967892964,4.29986,2325.7,2325.3,5.62503]
[1727967893278,4.29986,2325.7,2325.3,1.3247]
[1727967893640,4.29998,2325.6,2325.3,1.3247]
[1727967894038,4.29996,2325.6,2325.3,1.3247]
[1727967894338,4.29986,2325.7,2325.3,5.62511]
[1727967894540,4.29944,2325.9,2325.5,0.55]
[1727967894886,4.29972,2325.8,2325.5,0.55]
[1727967895365,0.87503695,2326.4,2325.9,0.55]
[1727967895565,4.29851,2326.4,2326.0,4.29914]
[1727967895938,4.29851,2326.4,2326.1,0.55]
[1727967896175,4.29823,2326.6,2326.1,0.55]
[1727967896424,4.2986,2326.4,2326.0,0.55]
[1727967896586,4.29847,2326.5,2326.0,1.20613479]
[1727967896785,4.29847,2326.5,2325.6,0.752]
[1727967896786,4.29853,2326.4,2325.6,0.752]
[1727967897094,4.29912,2326.1,2325.7,0.55]
[1727967897714,4.29903,2326.2,2325.7,0.55]
[1727967897928,5.07727,2326.7,2325.9,0.55]
[1727967898070,4.29826,2326.6,2326.2,0.55]
[1727967898271,4.29832,2326.5,2326.2,0.55]
[1727967898510,4.29832,2326.5,2326.1,0.55]
[1727967898720,4.29835,2326.5,2326.2,0.484907]
[1727967898978,4.29886,2326.2,2325.9,3.55]
[1727967899270,5.07713,2326.7,2326.1,0.55]
[1727967899271,4.2982,2326.6,2326.1,0.55]
[1727967899473,8.59643,2326.6,2326.2,0.484909]
[1727967899721,0.7792,2326.7,2326.3,0.55]
[1727967899922,4.29811,2326.6,2326.2,0.484909]
[1727967900138,4.29811,2326.6,2326.3,0.6118559]
[1727967900342,4.29788,2326.8,2326.3,4.9105059]
[1727967900541,0.8281,2327.0,2326.4,0.55]
[1727967900747,4.29871,2326.3,2326.1,0.7847]
[1727967900892,4.29893,2326.2,2325.8,7.84958]
[1727967901093,4.29893,2326.2,2325.8,0.55]
[1727967901365,4.29893,2326.2,2325.6,4.29996]
[1727967901366,4.29932,2326.0,2325.6,4.29988]
[1727967901637,4.29932,2326.0,2325.5,4.30004]
[1727967901638,8.59865,2326.0,2325.5,4.30004]
[1727967901842,4.2996,2325.8,2325.4,0.8063]
[1727967902148,0.8074,2326.4,2325.5,4.30014]
[1727967902149,4.29933,2326.0,2325.5,4.30014]
[1727967902499,4.29969,2325.8,2325.4,5.10646]
[1727967902695,0.8074,2326.4,2325.6,4.29995]
[1727967902696,4.29931,2326.0,2325.6,4.29995]
[1727967902897,5.10594,2326.4,2325.7,4.29964]
[1727967902898,4.29888,2326.2,2325.7,4.29964]
[1727967903102,4.29939,2326.0,2325.4,0.8063]
[1727967903327,4.29905,2326.1,2325.7,0.55]
[1727967903526,4.29887,2326.2,2325.7,4.84969]
[1727967903839,4.29887,2326.2,2325.4,0.8063]
[1727967903840,8.59942,2325.8,2325.4,3.8063]
[1727967904072,4.2996,2325.8,2325.4,0.8063]
[1727967904280,4.30015,2325.5,2325.1,5.10818]
[1727967904476,4.30036,2325.4,2325.1,0.8074]
[1727967904629,4.29889,2326.2,2325.1,0.8074]
[1727967904630,4.30007,2325.6,2325.1,0.8074]
[1727967904834,4.29987,2325.7,2325.3,4.3005]
[1727967905036,0.810586,2326.3,2325.1,0.8074]
[1727967905037,1.636786,2326.3,2325.1,0.8074]
[1727967905341,0.8262,2326.3,2325.7,4.29968]
[1727967905574,4.29913,2326.1,2325.7,5.10928]
[1727967906077,5.12488,2326.3,2325.4,0.8096]
[1727967906294,3.0,2326.4,2325.1,3.8096]
[1727967906295,4.30044,2325.4,2325.1,3.8096]
[1727967906583,4.30057,2325.3,2325.1,0.8096]
[1727967907071,5.12584,2325.8,2324.6,4.30173]
[1727967907072,4.30098,2325.1,2324.6,4.30173]
[1727967907273,4.30116,2325.0,2324.5,8.60377]
[1727967907570,4.30101,2325.1,2324.4,0.8331]
[1727967907783,4.3014,2324.9,2324.4,5.13524]
[1727967907968,4.3014,2324.9,2324.5,4.30198]
[1727967908142,4.30105,2325.1,2324.6,4.30172]
[1727967908739,4.30022,2325.5,2325.0,4.30107]
[1727967908740,4.30025,2325.5,2325.0,4.30107]
[1727967908959,4.29947,2325.9,2325.1,0.08601404]
[1727967908960,4.29993,2325.7,2325.1,0.08601404]
[1727967909178,4.29998,2325.6,2325.2,4.30052]
[1727967909635,4.3006,2325.3,2324.9,0.7874]
[1727967909829,0.859991,2325.6,2324.9,5.08865]
[1727967910065,0.8077,2325.9,2324.9,5.08865]
[1727967910066,4.29982,2325.7,2324.9,0.7874]
[1727967910280,4.3001,2325.6,2325.0,4.30091]
[1727967910447,4.29991,2325.7,2325.0,4.809741]
[1727967910648,1.318384,2325.9,2325.1,4.30087]
[1727967910649,0.8077,2325.9,2325.1,4.30087]
[1727967910881,4.30015,2325.6,2325.2,4.30067]
[1727967911082,4.30015,2325.6,2325.0,0.508831]
[1727967911083,4.30015,2325.5,2325.1,4.85086]
[1727967911285,4.30015,2325.5,2325.1,5.4105921]
[1727967911521,4.30015,2325.6,2325.1,0.5597321]
[1727967911829,0.8077,2325.9,2324.9,0.7874]
[1727967911830,4.3007,2325.2,2324.9,0.7874]
[1727967911974,4.29979,2325.7,2325.1,4.30087]
[1727967912177,4.29922,2326.0,2325.6,4.29994]
[1727967912403,4.29922,2326.0,2325.5,4.30011]
[1727967912612,4.29922,2326.0,2325.4,5.11621]
[1727967912613,0.8167,2326.2,2325.4,5.11632]
[1727967912772,4.29968,2325.8,2325.4,5.11632]
[1727967913172,4.29943,2325.9,2325.5,4.30012]
[1727967913374,0.7841,2326.6,2325.8,0.55]
[1727967913575,5.08228,2326.6,2326.1,4.29898]
[1727967913775,4.29784,2326.8,2326.4,4.2984]
[1727967914334,4.29714,2327.2,2326.7,4.29793]
[1727967914335,4.29716,2327.2,2326.7,4.29793]
[1727967914530,4.29682,2327.3,2326.8,0.429793]
[1727967914823,4.29728,2327.1,2326.6,4.84811]
[1727967914973,4.29692,2327.3,2326.6,4.84811]
[1727967914974,4.29692,2327.3,2326.7,4.29778]
[1727967915182,4.29731,2327.1,2326.6,0.55]
[1727967915386,0.8493,2327.4,2326.5,9.36063]
[1727967915387,4.29763,2326.9,2326.5,0.7643]
[1727967915735,4.29849,2326.4,2326.2,0.8035]
[1727967915894,4.29807,2326.7,2326.1,4.29893]
[1727967916098,0.7879,2326.8,2326.1,4.29893]
[1727967916099,5.08576,2326.8,2326.3,4.29864]
[1727967916296,4.29786,2326.8,2326.3,4.29854]
[1727967916615,4.29794,2326.7,2326.2,4.3841296]
[1727967917044,0.05,2327.4,2326.7,4.2979]
[1727967917184,4.297,2327.3,2326.8,0.7556]
[1727967917387,4.29701,2327.2,2326.8,5.55869]
[1727967917883,0.05,2327.4,2327.1,0.55]
[1727967918085,0.05,2327.4,2327.3,4.29682]
[1727967918306,0.05,2327.4,2327.3,5.10412]
[1727967919081,0.05,2327.4,2327.3,5.65412]
[1727967919284,0.05,2327.4,2327.3,9.36741579]
[1727967920223,0.05,2327.4,2327.3,18.80951879]
[1727967920629,0.05,2327.4,2327.3,13.36159079]
[1727967920789,0.05,2327.4,2327.3,32.99468279]
[1727967921125,0.05,2327.4,2327.3,9.36741579]
[1727967921633,9.3933,2328.8,2328.2,5.0923]
[1727967921785,4.29414,2328.8,2328.2,5.09228]
[1727967921987,4.29305,2329.4,2328.7,5.07307]
[1727967922295,4.29271,2329.6,2329.0,0.55]
[1727967922513,4.29271,2329.6,2329.0,1.463753]
[1727967922514,4.29295,2329.4,2329.0,1.463753]
[1727967922761,0.883753,2329.7,2329.1,4.29346]
[1727967922762,0.116253,2329.7,2329.1,4.29346]
[1727967923052,0.116253,2329.7,2329.2,0.7789]
[1727967923408,0.116253,2329.7,2329.4,4.29291]
[1727967923734,0.116253,2329.7,2329.4,3.0]
[1727967923947,0.116253,2329.7,2329.6,4.29258]
[1727967924509,0.116253,2329.7,2329.5,0.7603]
[1727967924913,0.116253,2329.7,2329.1,5.05369]
[1727967924914,4.408643,2329.7,2329.1,5.05369]
[1727967925157,0.116253,2329.7,2329.2,3.0]
[1727967925312,0.116253,2329.7,2329.4,3.0]
[1727967925648,0.116253,2329.7,2329.1,5.0537]
[1727967925833,0.116253,2329.7,2329.1,0.7603]
[1727967926014,4.29314,2329.3,2329.1,0.7603]
[1727967926211,4.29314,2329.3,2328.7,4.29413]
[1727967926212,4.29352,2329.1,2328.7,0.7573]
[1727967926409,4.2938,2329.0,2328.3,4.29482]
[1727967926648,4.29352,2329.1,2328.4,0.7987]
[1727967926649,4.29387,2328.9,2328.4,0.7987]
[1727967927012,4.29298,2329.4,2328.4,6.94188323]
[1727967927217,4.29333,2329.2,2328.4,0.7987]
[1727967927523,4.29372,2329.0,2328.4,5.0934]
[1727967927710,4.29372,2329.0,2328.4,0.7987]
[1727967927911,4.29308,2329.4,2328.4,0.7987]
[1727967928111,4.29308,2329.4,2328.8,4.29403]
[1727967928415,4.29308,2329.4,2328.9,0.08586494]
[1727967928757,5.06302,2329.6,2328.9,4.37963494]
[1727967928914,4.29326,2329.3,2328.7,4.2941]
[1727967929410,4.29288,2329.5,2328.7,4.2941]
[1727967929648,4.29288,2329.5,2328.9,4.29376]
[1727967929818,1.7174573,2329.6,2328.9,4.29376]
[1727967930023,0.7703,2329.6,2329.1,4.29349]
[1727967930263,5.06292,2329.6,2329.1,4.29349]
[1727967930461,0.7703,2329.6,2328.9,0.429376]
[1727967930784,0.116253,2329.7,2329.4,4.29293]
[1727967931076,0.116253,2329.7,2329.1,0.8297]
[1727967931077,4.29281,2329.5,2329.1,0.8297]
[1727967931229,0.116253,2329.7,2329.1,5.1231]
[1727967931428,4.29304,2329.4,2328.9,4.29375]
[1727967931683,4.29281,2329.5,2328.7,0.8163]
[1727967931829,4.29325,2329.3,2328.8,3.0]
[1727967932030,0.7791,2329.4,2328.7,0.8163]
[1727967932273,1.286272,2329.4,2328.7,0.8163]
[1727967932479,0.116253,2329.7,2328.7,0.8163]
[1727967932683,0.116253,2329.7,2329.2,4.29319]
[1727967932976,0.116253,2329.7,2329.3,0.06713416]
[1727967933172,0.116253,2329.7,2329.4,4.29283]
[1727967933929,0.116253,2329.7,2329.5,4.29276]
[1727967934134,0.116253,2329.7,2329.6,4.29258]
[1727967934460,0.116253,2329.7,2329.6,4.37827829]
[1727967935336,0.116253,2329.7,2329.6,7.37827829]
[1727967935763,0.116253,2329.7,2329.6,7.29258]
[1727967936264,0.116253,2329.7,2329.6,7.37818501]
[1727967936579,0.116253,2329.7,2329.6,4.29258]
[1727967936875,0.116253,2329.7,2329.5,4.29275]
[1727967937175,0.116253,2329.7,2329.5,4.29274]
[1727967937408,0.116253,2329.7,2329.5,4.29266]
[1727967937671,0.116253,2329.7,2329.6,4.29258]
[1727967937874,0.116253,2329.7,2329.3,5.108]
[1727967938073,0.116253,2329.7,2329.5,4.29275]
[1727967938264,0.116253,2329.7,2329.6,4.29258]
[1727967938636,0.116253,2329.7,2329.5,4.29266]
[1727967939136,0.116253,2329.7,2329.4,4.29285]
[1727967939335,0.116253,2329.7,2329.3,5.10808]
[1727967939336,0.116253,2329.7,2329.5,4.29261]
[1727967939736,0.116253,2329.7,2329.2,7.29331]
[1727967939737,4.29259,2329.6,2329.2,7.29331]
[1727967939963,4.408813,2329.7,2329.2,7.29314]
[1727967940179,4.2926,2329.6,2329.2,7.29314]
[1727967940489,0.116253,2329.7,2329.0,0.7727]
[1727967940774,0.116253,2329.7,2328.8,4.294]
[1727967940956,4.29369,2329.0,2328.5,4.2946]
[1727967941150,0.8206,2329.4,2328.6,4.29441]
[1727967941451,4.2927,2329.6,2329.0,4.29367]
[1727967941674,0.936853,2329.7,2328.4,0.88807396]
[1727967941981,4.29285,2329.5,2329.1,4.29341]
[1727967942143,5.229393,2329.7,2329.2,4.29323]
[1727967942347,5.229393,2329.7,2329.1,4.29341]
[1727967942654,5.229393,2329.7,2329.2,4.29317]
[1727967942837,4.29276,2329.5,2329.1,4.29339]
[1727967943272,4.29276,2329.5,2329.0,3.0]
[1727967943472,4.29306,2329.4,2329.0,3.0]
[1727967943633,4.29276,2329.5,2329.0,7.29358]
[1727967944635,0.936853,2329.7,2329.2,4.29317]
[1727967944636,0.116253,2329.7,2329.2,4.29317]
[1727967944837,4.29272,2329.6,2329.0,7.29357]
[1727967945142,4.29272,2329.6,2329.2,4.29331]
[1727967945338,4.408663,2329.7,2329.2,8.58653]
[1727967945684,0.116253,2329.7,2329.0,4.29362]
[1727967945973,0.116253,2329.7,2329.4,4.29281]
[1727967947056,0.116253,2329.7,2329.6,4.29258]
[1727967947407,0.116253,2329.7,2329.6,5.06888]
[1727967948044,0.116253,2329.7,2329.5,4.29266]
[1727967948255,0.116253,2329.7,2329.3,4.29299]
[1727967948988,4.408723,2329.7,2329.3,4.29299]
[1727967949221,4.29277,2329.5,2329.1,4.29337]
[1727967949416,4.408723,2329.7,2329.3,4.29312]
[1727967949623,4.408723,2329.7,2329.2,4.29328]
[1727967949791,0.6330153,2329.7,2329.1,4.29348]
[1727967949991,0.116253,2329.7,2329.1,4.29348]
[1727967950194,0.116253,2329.7,2329.2,4.29331]
[1727967950493,4.29278,2329.5,2329.0,5.06424]
[1727967950713,4.29264,2329.6,2329.0,0.7707]
[1727967951006,0.116253,2329.7,2329.0,1.14777]
[1727967951341,0.116253,2329.7,2329.1,4.29341]
[1727967951623,0.116253,2329.7,2329.4,4.29284]
[1727967951781,0.116253,2329.7,2329.0,3.7707]
[1727967951976,0.116253,2329.7,2329.0,8.06426]
[1727967952177,0.116253,2329.7,2329.0,0.7707]
[1727967952418,0.116253,2329.7,2329.4,4.29287]
[1727967953252,0.116253,2329.7,2329.4,4.29294]
[1727967953536,0.116253,2329.7,2329.4,4.29287]
[1727967953737,0.116253,2329.7,2329.5,4.29264]
[1727967954054,0.116253,2329.7,2329.6,5.485444]
[1727967954251,0.116253,2329.7,2329.6,8.485444]
[1727967955206,0.116253,2329.7,2329.3,3.0]
[1727967955542,0.116253,2329.7,2329.3,0.87374337]
[1727967955837,0.116253,2329.7,2329.3,0.11014337]
[1727967956038,0.116253,2329.7,2329.0,0.7636]
[1727967956207,0.116253,2329.7,2329.6,4.29258]
[1727967956408,0.116253,2329.7,2329.5,4.29273]
[1727967956659,0.116253,2329.7,2329.6,0.06466914]
[1727967956824,0.116253,2329.7,2329.6,4.35724914]
[1727967957023,0.116253,2329.7,2329.5,8.58535]
[1727967957363,0.116253,2329.7,2329.5,4.29273]
[1727967957657,0.116253,2329.7,2329.4,4.29292]
[1727967957817,0.116253,2329.7,2329.4,8.58573]
[1727967958244,0.116253,2329.7,2329.3,4.29305]
[1727967958459,0.116253,2329.7,2329.4,4.29286]
[1727967958681,0.116253,2329.7,2329.5,4.29271]
[1727967959165,0.116253,2329.7,2329.3,4.29303]
[1727967959377,0.7686,2329.6,2329.1,4.29339]
[1727967959527,0.7686,2329.6,2329.2,4.722519]
[1727967959867,4.2928,2329.5,2329.2,0.429339]
[1727967960053,0.7686,2329.6,2328.9,4.29387]
[1727967960054,5.06121,2329.6,2328.9,4.29387]
[1727967960237,4.2929,2329.5,2329.0,4.29364]
[1727967960465,4.29352,2329.1,2328.7,4.29412]
[1727967960794,4.29324,2329.3,2328.3,4.40482956]
[1727967960795,4.29407,2328.8,2328.4,4.29475]
[1727967961015,0.7892,2329.0,2328.1,0.8171]
[1727967961292,0.7892,2329.0,2327.8,0.89540748]
[1727967961293,0.7892,2328.5,2327.8,0.8171]
[1727967961490,0.8318,2328.8,2327.8,0.8171]
[1727967961791,5.12508,2329.3,2328.8,4.29394]
[1727967961992,0.8318,2329.3,2328.8,4.29394]
[1727967962589,7.29271,2329.6,2328.9,4.3796291]
[1727967962590,0.7552,2329.6,2328.9,4.3796291]
[1727967962799,4.29304,2329.4,2328.9,4.73172291]
[1727967962955,4.29285,2329.5,2329.0,4.29358]
[1727967963147,4.29306,2329.4,2328.9,4.73172291]
[1727967963350,0.7552,2329.6,2328.6,0.7568]
[1727967963351,4.29332,2329.2,2328.8,4.29394]
[1727967963550,4.29321,2329.3,2328.8,4.29394]
[1727967963790,0.7552,2329.2,2328.4,4.29471]
[1727967963990,5.04866,2329.2,2328.5,7.29446]
[1727967964193,0.7552,2329.2,2328.3,0.795]
[1727967964494,0.7552,2329.2,2328.4,4.29468]
[1727967964693,4.29387,2328.9,2328.4,4.29468]
[1727967965000,0.7689,2328.6,2328.0,0.8017]
[1727967965201,4.29487,2328.4,2327.9,8.59116]
[1727967965506,0.7689,2328.6,2327.7,0.8158]
[1727967965507,0.7689,2328.6,2327.8,4.2958]
[1727967965666,4.29512,2328.3,2327.8,5.19120748]
[1727967965853,4.29472,2328.5,2327.9,5.19098748]
[1727967966052,4.29516,2328.2,2327.8,0.89540748]
[1727967966252,4.29527,2328.2,2327.8,0.89540748]
[1727967966495,4.29527,2328.2,2327.9,0.89540748]
[1727967966496,4.29525,2328.2,2327.9,0.89540748]
[1727967966799,4.29525,2328.2,2327.7,0.89540748]
[1727967966800,4.29553,2328.0,2327.7,0.89540748]
[1727967967107,4.29481,2328.4,2327.7,0.89540748]
[1727967967108,0.7919,2328.4,2327.7,0.89540748]
[1727967967400,12.51830695,2329.3,2328.3,4.29479]
[1727967967401,4.29414,2328.8,2328.3,4.29479]
[1727967967608,0.7919,2328.5,2328.1,4.29531]
[1727967967896,0.7919,2328.5,2328.1,4.29523]
[1727967968315,4.29372,2329.0,2327.8,4.72660748]
[1727967968316,5.06556,2328.8,2328.4,4.29466]
[1727967968470,1.64643695,2329.1,2328.7,4.29412]
[1727967968678,0.7714,2329.1,2328.4,0.7509]
[1727967968867,1.31132614,2329.2,2329.1,4.2935]
[1727967969206,0.8812294,2329.4,2328.9,0.7609]
[1727967969374,0.8812294,2329.4,2329.3,4.29313]
[1727967969775,0.9974824,2329.7,2329.2,3.0]
[1727967970072,5.2899824,2329.7,2329.3,0.3]
[1727967970277,4.29308,2329.4,2328.6,0.8046]
[1727967970460,4.29303,2329.4,2328.9,4.29384]
[1727967970663,2.08412528,2329.6,2328.7,3.0]
[1727967970664,4.29351,2329.1,2328.7,3.0]
[1727967971305,4.29371,2329.0,2328.7,3.0]
[1727967971509,4.29351,2329.1,2328.7,8.023657]
[1727967971810,4.29344,2329.2,2328.7,0.729427]
[1727967971977,4.29359,2329.1,2328.7,0.89540748]
[1727967972183,4.29311,2329.4,2328.7,5.18953748]
[1727967972490,4.29311,2329.4,2328.9,4.29387]
[1727967972699,5.05477,2329.6,2329.2,4.29322]
[1727967972900,0.7621,2329.6,2329.3,4.29303]
[1727967973071,0.9974824,2329.7,2329.5,4.29276]
[1727967973273,0.116253,2329.7,2329.3,4.29302]
[1727967973709,0.116253,2329.7,2329.6,4.29258]
[1727967974209,0.116253,2329.7,2329.6,8.06548]
[1727967974520,0.116253,2329.7,2329.6,8.61548]
[1727967975005,0.116253,2329.7,2329.6,27.520604]
[1727967975496,2.20376561,2330.8,2330.7,4.29055]
[1727967975699,5.70594517,2331.1,2330.9,4.29018]
[1727967976068,5.70594517,2331.1,2331.0,4.33315248]
[1727967976272,5.70594517,2331.1,2331.0,22.900463]
[1727967976591,3.08499501,2331.6,2331.3,4.28932]
[1727967976782,0.8812294,2331.7,2331.4,4.28925]
[1727967976982,0.8812294,2331.8,2331.6,4.28877]
[1727967977181,1.73940116,2331.9,2331.4,4.28916]
[1727967977387,1.73940116,2331.9,2331.0,3.8199]
[1727967977388,6.02787116,2331.9,2331.3,3.0]
[1727967977583,1.73940116,2331.9,2331.4,4.28925]
[1727967977915,4.28849,2331.9,2331.3,3.728959]
[1727967978135,1.73940116,2332.0,2331.0,5.10978]
[1727967978275,4.28862,2331.8,2331.1,3.0]
[1727967978473,6.02773116,2332.0,2331.2,4.28961]
[1727967978711,6.02770116,2332.0,2331.4,4.28925]
[1727967978908,4.28873,2331.7,2331.2,4.28953]
[1727967979208,4.28882,2331.7,2331.2,4.28953]
[1727967979520,3.889453,2332.1,2331.0,4.28985]
[1727967979521,4.28897,2331.6,2331.0,4.28985]
[1727967979826,4.28897,2331.6,2330.6,5.0572]
[1727967979827,4.28982,2331.1,2330.5,4.29087]
[1727967979980,0.7888,2331.3,2330.5,4.2909]
[1727967980170,0.7888,2331.3,2330.5,4.29074]
[1727967980503,0.7888,2331.3,2330.9,4.29007]
[1727967980816,4.28883,2331.7,2330.5,4.799394]
[1727967980817,0.7888,2331.7,2330.8,4.29026]
[1727967981012,0.7888,2331.7,2330.7,3.0]
[1727967981167,0.7888,2331.7,2331.0,4.28982]
[1727967981368,0.7888,2331.7,2330.8,4.29025]
[1727967981666,0.7888,2331.7,2330.7,4.29054]
[1727967981667,4.28975,2331.2,2330.7,4.29054]
[1727967981870,4.28985,2331.1,2330.6,4.29064]
[1727967982117,4.29009,2331.0,2330.4,4.29099]
[1727967982269,4.29009,2331.0,2329.9,4.292]
[1727967982270,0.7834,2331.0,2329.9,0.8085]
[1727967982475,0.7834,2331.0,2330.6,4.29061]
[1727967982679,0.7834,2331.0,2330.3,4.29116]
[1727967982680,4.29029,2330.9,2330.3,4.29116]
[1727967983016,0.7834,2331.0,2330.5,4.29075]
[1727967983217,5.07349,2331.0,2330.6,0.08580518]
[1727967983370,0.7834,2331.0,2330.6,0.08580518]
[1727967983571,4.29043,2330.8,2330.3,4.29117]
[1727967983813,0.7834,2331.0,2329.9,5.10052]
[1727967983983,0.7834,2331.0,2329.1,5.63739151]
[1727967983984,4.29132,2330.3,2329.7,4.29227]
[1727967984182,4.29101,2330.5,2329.5,0.7721]
[1727967984183,4.29179,2330.1,2329.5,5.06474]
[1727967984390,9.35118,2330.1,2329.5,8.58531]
[1727967984712,9.35123,2330.1,2329.5,4.29275]
[1727967984923,4.29195,2330.0,2329.3,8.58604]
[1727967985212,4.29195,2330.0,2329.5,4.29273]
[1727967985519,0.7676,2330.1,2329.4,4.29286]
[1727967985678,0.7676,2330.1,2329.2,5.0567]
[1727967985881,0.7676,2330.1,2329.5,4.29274]
[1727967985882,4.29198,2330.0,2329.5,4.29274]
[1727967986109,8.58396,2330.0,2329.5,4.29274]
[1727967986313,4.29198,2330.0,2329.3,4.79876]
[1727967986523,4.29222,2329.8,2329.3,4.79876]
[1727967986728,0.7676,2330.1,2328.8,0.7742]
[1727967986729,5.05936,2330.1,2328.8,0.7742]
[1727967986926,8.58465,2329.8,2329.2,4.29321]
[1727967987222,8.58465,2329.8,2329.3,4.29313]
[1727967987223,4.29231,2329.8,2329.3,4.29313]
[1727967987401,4.29243,2329.7,2329.2,4.29323]
[1727967987604,4.29269,2329.6,2329.1,3.0]
[1727967987777,4.29216,2329.9,2329.2,4.29318]
[1727967987978,4.29229,2329.8,2329.3,4.29302]
[1727967988519,4.29313,2329.3,2328.8,0.7742]
[1727967988814,4.29313,2329.3,2328.8,4.29389]
[1727967989021,5.06934,2329.5,2329.1,4.29346]
[1727967989379,0.7765,2329.5,2329.1,8.58692]
[1727967989570,0.7765,2329.5,2329.1,4.29346]
[1727967989773,4.29253,2329.7,2329.2,4.29329]
[1727967989974,4.29249,2329.7,2329.2,4.29329]
[1727967990216,4.29249,2329.7,2329.1,4.29346]
[1727967990417,4.29249,2329.7,2328.9,4.29372]
[1727967990418,4.29259,2329.6,2329.2,4.33890315]
[1727967990775,4.29249,2329.7,2329.1,4.29349]
[1727967990976,4.2927,2329.6,2329.2,0.04561531]
[1727967991179,4.2927,2329.6,2328.6,4.29426]
[1727967991180,4.29315,2329.3,2328.6,4.29426]
[1727967991496,4.29315,2329.3,2328.7,4.38003579]
[1727967991497,4.2935,2329.1,2328.7,4.38003579]